Cogmind - Beta 9.4 @@@ ROGUE MODE // 2020.01.18 @ 21:21:24 Player: Giann Result: Destroyed by G-47 Trooper with Particle Gun Performance ------------- Evolutions (0) 0 Regions Visited (1) 200 Robots Destroyed (6) 30 Value Destroyed (113) 113 Prototype IDs (0) 0 Alien Tech Used (0) 0 Bonus (0) 0 TOTAL SCORE: 343 Bonus ------- None Cogmind --------- Core Integrity 0/250 Matter 280/300 Energy 92/100 System Corruption 0% Temperature Cool (14) Movement Walking (120) Location -10/Materials Parts ------- > --- POWER (1) -------- (None) > --- PROPULSION (2) --- Aluminum Leg Aluminum Leg > --- UTILITY (2) ------ (None) > --- WEAPON (2) ------- Small Laser Welding Torch > --- INVENTORY (4) ---- (None) Peak State ------------ > --- POWER ------------ Light Ion Engine > --- PROPULSION ------- Aluminum Leg Aluminum Leg > --- UTILITY ---------- Terrain Scanner > --- WEAPON ----------- Assault Rifle Light Assault Rifle > --- INVENTORY -------- Welding Torch [Rating: 6] Favorites ----------- Power Light Ion Engine Engine Light Ion Engine Propulsion Aluminum Leg Leg Aluminum Leg Wheel Wheel Utility Terrain Scanner Device Terrain Scanner Weapon Assault Rifle Energy Gun Small Laser Ballistic Gun Assault Rifle Special Weapon Welding Torch Build | -11 -10 ------- Run | Scr Mat Slots Evolved . | . . Power . | . . Propulsion . | . . Utility . | . . Weapon . | . . Parts Attached 11 | 5 6 Power 1 | 1 . Engine 1 | 1 . Core . | . . Reactor . | . . Propulsion 5 | 2 3 Treads . | . . Leg 4 | 2 2 Wheel 1 | . 1 Hover . | . . Flight . | . . Utility 1 | . 1 Device 1 | . 1 Storage . | . . Processor . | . . Hackware . | . . Protection . | . . Artifact . | . . Weapon 4 | 2 2 Energy Gun 1 | . 1 Energy Cannon . | . . Ballistic Gun 2 | 2 . Ballistic Cannon . | . . Launcher . | . . Special Weapon 1 | . 1 Impact Weapon . | . . Slashing Weapon . | . . Piercing Weapon . | . . Special Melee Weapon . | . . Unidentified Prototypes . | . . Parts Lost 6 | . 6 Power 1 | . 1 Propulsion 2 | . 2 Utility 1 | . 1 Weapon 2 | . 2 Highest Loss Streak 5 | . 5 Average Slot Usage (%) 63 | . 63 Engine 9 | . 9 Leg 23 | . 23 Device 6 | . 6 Energy Gun 3 | . 3 Ballistic Gun 17 | . 17 Special Weapon 3 | . 3 Naked Turns 14 | . 14 Heaviest Build 7 | 6 7 Greatest Support 20 | 20 20 Greatest Overweight (x) . | . . Average Overweight (x) . | . . Largest Inventory Capacity 4 | 4 4 Average Capacity 4 | 4 4 Most Carried 3 | 2 3 Average Carried . | . . Final Capacity 4 | 4 4 Final Carried . | . . Class Distribution -------------------- 82% | Mutant 17% | Scavenger-Mutant Dominant Class ---------------- Mutant | -10/Materials Resources | -11 -10 ----------- Run | Scr Mat Matter Collected 369 | 200 169 Remotely . | . . Salvage Created 169 | 48 121 Parts 11 | 2 9 Haulers Intercepted . | . . Recyclers Shooed 2 | . 2 Parts Field Recycled . | . . Retrieved Matter . | . . Parts Self-Destructed . | . . Prevented . | . . Kills | -11 -10 ------- Run | Scr Mat Combat Hostiles Destroyed 5 | 1 4 Melee 1 | . 1 Guns 4 | 1 3 Classes Destroyed 3 | 1 2 Builder 1 | . 1 Swarmer 3 | . 3 Grunt 2 | 1 1 Best Kill Streak 3 | 1 3 Combat Bots Only 3 | 1 3 Max Kills in Single Turn 1 | 1 1 Gunslinging . | . . Exploded . | . . Melee 1 | . 1 Uniques/NPCs Destroyed . | . . Combat | -11 -10 -------- Run | Scr Mat Damage Taken 726 | 57 669 Core 258 | . 258 Absorbed by Shields . | . . Core Remaining (%) 100 | 100 . Volleys Fired 43 | 4 39 Largest 2 | 2 2 Hottest 40 | 40 40 Shots Fired 60 | 8 52 Gun 60 | 8 52 Cannon . | . . Launcher . | . . Special . | . . Kinetic 52 | 8 44 Thermal 8 | . 8 Explosive . | . . Electromagnetic . | . . Robot Hit Streak 8 | 7 8 Robot Miss Streak 4 | . 4 Penetration Max . | . . Secondary Targets 1 | . 1 Max Gunslinging Chain 1 | . 1 Shots Hit Robots 33 | 7 26 Core Hits 16 | 2 14 Critical Hits . | . . Critical Kills . | . . Critical Parts Destroyed . | . . Melee Attacks . | . . Impact . | . . Slashing . | . . Piercing . | . . Sneak Attacks . | . . Combat Hostiles . | . . Follow-up Attacks . | . . Damage Inflicted 411 | 69 342 Guns 393 | 69 324 Cannons . | . . Explosions . | . . Melee . | . . Ramming 18 | . 18 Kinetic 371 | 69 302 Thermal 22 | . 22 Explosive . | . . Electromagnetic . | . . Impact . | . . Slashing . | . . Piercing . | . . Highest Corruption . | . . Average Corruption . | . . Corruption Purged . | . . Overload Shots . | . . Overflow Damage . | . . Projectiles . | . . Explosions . | . . Melee . | . . Knockbacks . | . . Impact . | . . Kinetic . | . . Secondary . | . . Self-Inflicted Damage 8 | . 8 Shots . | . . Rammed 6 | . 6 Targets Rammed 6 | . 6 Kicked . | . . Crushed . | . . Highest Temperature 12 | 12 5 Average Temperature 6 | 9 4 Received Heat Transfer 246 | 30 216 Siege Activations . | . . Robots Corrupted . | . . Combat Hostiles . | . . Parts Fried . | . . Impact Corruptions . | . . Robots Melted . | . . Combat Hostiles . | . . Parts Melted . | . . Heat Transferred 50 | . 50 Parts Sabotaged . | . . Parts Stolen . | . . Parts Stripped . | . . Power Chain Reactions . | . . Missiles Intercepted . | . . Alert | -11 -10 ------- Run | Scr Mat Peak Influence 93 | 20 93 Average Influence 33 | 2 44 Maximum Alert Level . | . . Low Security (%) 100 | 100 100 Level 1 . | . . Level 2 . | . . Level 3 . | . . Level 4 . | . . Level 5 . | . . High Security . | . . Max Security . | . . Squads Dispatched 1 | . 1 Investigation . | . . Extermination . | . . Reinforcement 1 | . 1 Assault . | . . Garrison . | . . Intercept . | . . Construction Impeded . | . . Haulers Reinforced . | . . Stealth | -11 -10 --------- Run | Scr Mat Distress Signals . | . . Communications Jammed . | . . Distress Signals . | . . Times Spotted 12 | 1 11 Peak Tracking Total 5 | 1 5 Tactical Retreats . | . . Traps | -11 -10 ------- Run | Scr Mat Traps Triggered . | . . Indirectly . | . . Trap Hack Attempts . | . . Triggered . | . . Disarmed . | . . Reprogrammed . | . . Reused . | . . Traps Extracted . | . . Installed . | . . Triggered . | . . Machines | -11 -10 ---------- Run | Scr Mat Machines Disabled 1 | . 1 Max in Single Turn 1 | . 1 Machines Sabotaged . | . . Garrisons Compromised . | . . Overloaded Fab Kills . | . . Fab Network Shutdowns . | . . Hacking | -11 -10 --------- Run | Scr Mat Machines Accessed . | . . Terminals . | . . Fabricators . | . . Repair Stations . | . . Recycling Units . | . . Scanalyzers . | . . Garrison Access . | . . Total Hacks . | . . Successful . | . . Failed . | . . Catastrophic . | . . Database Lockouts . | . . Manual . | . . Terminals . | . . Fabricators . | . . Repair Stations . | . . Recycling Units . | . . Scanalyzers . | . . Garrison Access . | . . Terminal Hacks . | . . Fabricator Hacks . | . . Repair Station Hacks . | . . Recycling Unit Hacks . | . . Scanalyzer . | . . Garrison Access Hacks . | . . Unauthorized Hacks . | . . Terminals . | . . Fabricators . | . . Repair Stations . | . . Recycling Units . | . . Scanalyzers . | . . Garrison Access . | . . Data Cores Recovered . | . . Used . | . . Hacking Detections . | . . Full Trace Events . | . . Feedback Events . | . . Feedback Blocked . | . . Robot Schematics Acquired . | . . Robots Built . | . . Matter . | . . Time . | . . Total Robot Build Rating . | . . Part Schematics Acquired . | . . Parts Built . | . . Matter . | . . Time . | . . Total Part Build Rating . | . . Parts Repaired . | . . Time . | . . Parts Recycled . | . . Recycled Matter . | . . Retrieved Matter . | . . Retrieved Components . | . . Parts Scanalyzed . | . . Part Schematics Acquired . | . . Parts Damaged . | . . Bothacking | -11 -10 ------------ Run | Scr Mat Used RIF Installer . | . . Robots Hacked . | . . Non-combat . | . . Combat . | . . Robot Hacks Applied . | . . Relay Couplers Released . | . . Robots Rewired . | . . Allies Hacked . | . . Hacks Repelled . | . . Allies | -11 -10 -------- Run | Scr Mat Total Allies . | . . Largest Group . | . . Highest-Rated Group . | . . Highest-Rated Ally . | . . Total Orders . | . . Ally Attacks . | . . Total Damage . | . . Kills . | . . Allies Corrupted . | . . Allies Melted . | . . Intel | -11 -10 ------- Run | Scr Mat Robot Analysis Total . | . . Derelict Logs Recovered . | . . Drone Launches . | . . Drone Recoveries . | . . Exploration | -11 -10 ------------- Run | Scr Mat Turns Passed 426 | 107 319 Spaces Moved 292 | 90 202 Core 70 | 31 39 Treads . | . . Legs 218 | 59 159 Wheels 4 | . 4 Hover . | . . Flight . | . . Fastest Speed 50 | 50 50 Average Speed 102 | 95 105 Slowest Speed 120 | 120 120 Overloaded Moves . | . . Propulsion Burnouts . | . . Robots Hopped . | . . Cave-ins Triggered . | . . Exploration Rate (%) 14 | 6 23 Regions Visited 1 Branch Regions . Pre-discovered Areas . | . . Known Exits Taken . | . . Unknown Exits Taken 1 | 1 . Scrap Searched . | . . Spaces Dug . | . . Terrain Destroyed . | . . Melee . | . . Projectile . | . . AOE . | . . Actions | -11 -10 --------- Run | Scr Mat Total 364 | 103 261 Wait . | . . Move 291 | 89 202 Hop . | . . Pick Up 11 | 5 6 Fast Attach . | . . Attach 11 | 5 6 Detach 1 | . 1 Swap . | . . Drop 1 | . 1 Fire 43 | 4 39 Melee . | . . Ram 6 | . 6 Kick . | . . Crush . | . . Escape Stasis . | . . Rewire . | . . Trap . | . . Miscellaneous . | . . Route ------- -11/Scrapyard -10/Materials History --------- Turn | Location | Event 2 | -11/Scrapyard | Met Revision 17 75 | -11/Scrapyard | Discovered new exit (range 8) 108 | -11/Scrapyard | Entered Materials 303 | -10/Materials | Build established: Mutant 338 | -10/Materials | Core integrity fell below 50% 347 | -10/Materials | Core integrity fell below 20% 375 | -10/Materials | Lost 5 parts (1p2n1u1w) 427 | -10/Materials | Destroyed by G-47 Trooper with Particle Gun Last Messages --------------- Ramming works as a last resort when unarmed or blocked, but can have serious negative consequences. U-05 Engineer lays Concrete. Slammed into G-34 Mercenary. Terrain Scanner destroyed. Slammed into G-34 Mercenary. G-34 Mercenary destroyed. Acquired 50 matter. Slammed into G-34 Mercenary. G-34 Mercenary destroyed. [Achievement: Fist Fight] Slammed into K-01 Serf. Acquired Sml. Laser. Acquired Wheel. Acquired 5 matter. Acquired 25 matter. Acquired Aluminum Leg. Dropped Wheel. K-01 Serf cleans the Atomic Centrifuge. [Achievement: First Step to Greatness] Map ----- +----------------------------------------------------+ | ??????????? ? ???### #?#?????????????? ????? | | ???????????????????# #???????"?????????????? | | ??????????? ???????# #???? ??????#?????????? | | ???????????????????# #?????? ?? #??????????? | | ????????##+######### #???????? ??#?????????? | | ????????# #???????? #??????????? | | ????????# #?????"?" #??????????? | | ????????# """ """ #?????? #? ????????? | | ??????? #??""" "" #?#??? #??????????? | | ????????# """ """ #?#?? ???????????? | | ????????# """ "" #### "T" ????????????? | | ????????# """ """% """ ???????? | | ?????? ?# ???????? | | ????????+ * ! ???????? | | ????????# ############+#????????? | | ????????####+### g* #???? ???? ???????????? | | ?????????? ? ?#% !##??#??????????????????? | | ???????????? ??#=%tg#??????????????????????? | | ???????????????# != #??????????????????????? | | ????????????? ?# #??????????????????????? | | ???????????????# #??????????????????????? | | ??????????? ???# ##########?????????????? | | ???????????????# # #?????????????? | | ???????????????# # """ #?????????????? | | ?????????????? # # """ #?????????????? | | ???????????????#r @# """ #?????????????? | | ???????????????# k #?????????????? | | ???????????????# # """ #?????????????? | | ???????????????# # """ #?????????????? | | ???????????????# # """ #?????????????? | | ?????????????? # #?????????????? | | ????????????? ##########?????????????? | | ??????????? #??????????????????????? | | ?????????? ########??????????????????????? | | ?????????# ??????????????????????????????? | | ?????????# ???????????????????????????????? | | ?????????# ????????????????????????????????? | | ?????????#?????????????????????????????????? | | ???????????????????????????????????????????? | | ???????????????????????????????????????????? | | ???????????????????????????????????????????? | | ???????????????????????????????????????????? | | ???????????????????????????????????????????? | | ???????????????????????????????????????????? | | ???????????????????????????????????????????? | | ???????????????????????????????????????????? | | ???????????????????????????????????????????? | | ???????????????????????????????????????????? | | ???????????????????????????????????????????? | | ???????????????????????????????????????????? | +----------------------------------------------------+ Best States ------------- Heat Dissipation 25 Energy Generation 10 Energy Capacity 125 Matter Stores 300 Matter Capacity 300 Sight Range 16 Terrain Scan Range 14 Terrain Scan Density 10 Evasion (%) 50 Item Schematics ----------------- None Robot Schematics ------------------ None Fabricated ------------ Nothing Alien Tech Used ----------------- None Achievements -------------- First Step to Greatness Fist Fight Uninvited Guest Challenges ------------ None Game ------ Seed NullExperimentalTreads Manual? 0 Play Time 00:13:34 Cumulative 0.4 hours Start 2020.01.18 @ 21:07:52 End 2020.01.18 @ 21:21:24 Sessions 1 Manual Loads 0 Difficulty Rogue Special Mode None Game No. 1 Rogue 1 Adventurer 0 Explorer 0 Win Type - Total 0 Types 0/0/0/0/0/0/0 Lore% 0 Gallery% 0 Achievement% 1 Wizard Run 0 Options --------- ASCII 1 Keyboard 1 Movement Vi Keybinds 0 Fullscreen 1 Font 18/SmallcapsGlow Map View 76x50 Tactical HUD 0 Map Filters NONE Filters NONE Steam 1 RUN: f43623d5-e9e4-4994-b7f6-a776a40708e1